fUSD/lending_fUSD_20250105
["ID","MTS","AMOUNT","RATE_DAILY","PERIOD"]
[347667361,1736044234576,-500.0,0.00011997,2]
[347667362,1736044234585,-500.0,0.00011997,2]
[347667363,1736044234596,-500.0,0.00011997,2]
[347667364,1736044234606,-500.69683385,0.00011997,2]
[347667365,1736044234615,-500.0,0.00011997,2]
[347667366,1736044234625,-500.0,0.00011997,2]
[347667367,1736044234635,-1045.85338607,0.00011997,2]
[347667368,1736044234646,-524.5532823,0.00011997,2]
[347667369,1736044234655,-5834.50117009,0.00011998,2]
[347667370,1736044234665,-502.05155568,0.00011998,2]
[347667371,1736044234675,-439.64917414,0.00011998,2]
[347667372,1736044234684,-500.0,0.00011998,2]
[347667373,1736044234694,-500.80543003,0.00011998,2]
[347667374,1736044234703,-500.0,0.00011998,2]
[347667375,1736044234712,-501.51803265,0.00011998,2]
[347667376,1736044234721,-501.4384231,0.00011998,2]
[347667377,1736044234731,-504.05628522,0.00011998,2]
[347667378,1736044234740,-500.58788417,0.00011998,2]
[347667379,1736044234750,-500.0,0.00011998,2]
[347667380,1736044234762,-500.79502325,0.00011998,2]
[347667381,1736044234771,-501.48800718,0.00011998,2]
[347667382,1736044234780,-500.18094167,0.00011998,2]
[347667383,1736044234789,-500.0,0.00011998,2]
[347667384,1736044234799,-451.96869363,0.00011998,2]
[347667385,1736044234809,-500.0,0.00011998,2]
[347667386,1736044234819,-500.0,0.00011998,2]
[347667387,1736044234829,-500.72714143,0.00011998,2]
[347667388,1736044234838,-501.03863165,0.00011998,2]
[347667389,1736044234847,-501.09760069,0.00011998,2]
[347667390,1736044234856,-501.39592195,0.00011998,2]
[347667391,1736044234866,-512.3923581,0.00011998,2]
[347667392,1736044234875,-501.13049863,0.00011998,2]
[347667393,1736044234885,-500.0,0.00011998,2]
[347667394,1736044234894,-501.6805873,0.00011998,2]
[347667395,1736044234904,-503.38208848,0.00011998,2]
[347667396,1736044234913,-503.84443695,0.00011998,2]
[347667397,1736044234923,-499.05300656,0.00011998,2]
[347667398,1736044234932,-500.42600493,0.00011998,2]
[347667399,1736044234941,-505.65691567,0.00011998,2]
[347667400,1736044234951,-255.08557519,0.00011998,2]
[347667401,1736044234962,-500.0,0.00011998,2]
[347667402,1736044234972,-500.0,0.00011998,2]
[347667403,1736044234981,-500.0,0.00011998,2]
[347667404,1736044234990,-500.53552079,0.00011998,2]
[347667405,1736044235000,-500.0,0.00011998,2]
[347667406,1736044235012,-518.50862622,0.00011998,2]
[347667407,1736044235021,-501.35155411,0.00011998,2]
[347667408,1736044235030,-508.91130319,0.00011998,2]
[347667409,1736044235040,-563.76444834,0.00011998,2]
[347667410,1736044235050,-500.50836325,0.00011998,2]
[347667411,1736044235059,-500.0,0.00011998,2]
[347667412,1736044235068,-500.88048072,0.00011998,2]
[347667413,1736044235080,-500.0,0.00011998,2]
[347667414,1736044235088,-514.04299347,0.00011998,2]
[347667415,1736044235097,-500.0,0.00011998,2]
[347667416,1736044235107,-500.0,0.00011998,2]
[347667417,1736044235117,-500.0,0.00011998,2]
[347667418,1736044235127,-500.67126108,0.00011998,2]
[347667419,1736044235136,-501.19726801,0.00011998,2]
[347667420,1736044235147,-500.0,0.00011998,2]
[347667421,1736044235156,-309.78402892,0.00011998,2]
[347667422,1736044235165,-500.0,0.00011998,2]
[347667423,1736044235175,-501.61376049,0.00011998,2]
[347667424,1736044235186,-500.0,0.00011998,2]
[347667425,1736044235195,-397.69987994,0.00011998,2]
[347667426,1736044235205,-500.0,0.00011998,2]
[347667427,1736044235214,-500.0,0.00011998,2]
[347667428,1736044235224,-500.0,0.00011998,2]
[347667429,1736044235235,-501.48047254,0.00011998,2]
[347667430,1736044235244,-501.18537537,0.00011998,2]
[347667431,1736044235412,-500.0,0.00011998,2]
[347667432,1736044235422,-498.88196179,0.00011998,2]
[347667433,1736044235432,-500.0,0.00011998,2]
[347667434,1736044235441,-500.0,0.00011998,2]
[347667435,1736044235451,-500.0,0.00011998,2]
[347667436,1736044235459,-502.36028817,0.00011998,2]
[347667437,1736044235469,-500.65743619,0.00011998,2]
[347667438,1736044235478,-500.0,0.00011998,2]
[347667439,1736044235487,-515.59399331,0.00011998,2]
[347667440,1736044235496,-500.0,0.00011998,2]
[347667441,1736044235507,-500.0,0.00011998,2]
[347667442,1736044235516,-511.16345948,0.00011998,2]
[347667443,1736044235525,-500.48917351,0.00011998,2]
[347667444,1736044235535,-500.00010362,0.00011998,2]
[347667445,1736044235544,-501.263139,0.00011998,2]
[347667446,1736044235553,-501.07016782,0.00011998,2]
[347667447,1736044235563,-500.0,0.00011998,2]
[347667448,1736044235572,-634.21044391,0.00011998,2]
[347667449,1736044235582,-500.0,0.00011998,2]
[347667450,1736044235593,-500.28254347,0.00011998,2]
[347667451,1736044235603,-500.79458296,0.00011998,2]
[347667452,1736044235613,-500.0,0.00011998,2]
[347667453,1736044235623,-500.0,0.00011998,2]
[347667454,1736044235633,-501.06489733,0.00011998,2]
[347667455,1736044235644,-500.0,0.00011998,2]
[347667456,1736044235654,-500.27465347,0.00011998,2]
[347667457,1736044235664,-500.0,0.00011998,2]
[347667458,1736044235674,-500.50414035,0.00011998,2]
[347667459,1736044235684,-500.0,0.00011998,2]
[347667460,1736044235694,-500.0,0.00011998,2]
[347667461,1736044235703,-500.78149632,0.00011998,2]
[347667462,1736044235714,-500.60560251,0.00011998,2]
[347667463,1736044235723,-500.0,0.00011998,2]
[347667464,1736044235733,-500.0,0.00011998,2]
[347667465,1736044235743,-500.51018845,0.00011998,2]
[347667466,1736044235752,-501.04319479,0.00011998,2]
[347667467,1736044235763,-500.70544413,0.00011998,2]
[347667468,1736044235772,-455.08781644,0.00011998,2]
[347667469,1736044235783,-500.46988038,0.00011998,2]
[347667470,1736044235792,-500.0,0.00011998,2]
[347667471,1736044235801,-500.3753196,0.00011998,2]
[347667472,1736044235811,-500.0,0.00011998,2]
[347667473,1736044235819,-500.24305715,0.00011998,2]
[347667474,1736044235829,-500.0,0.00011998,2]
[347667475,1736044235838,-500.3237509,0.00011998,2]
[347667476,1736044235847,-500.0,0.00011998,2]
[347667477,1736044235856,-500.0,0.00011998,2]
[347667478,1736044235866,-500.0,0.00011998,2]
[347667479,1736044235875,-724.43,0.00011998,2]
[347667480,1736044235884,-500.0,0.00011998,2]
[347667481,1736044235893,-242.58948819,0.00011998,2]
[347667482,1736044235902,-500.0,0.00011998,2]
[347667483,1736044235912,-500.0,0.00011998,2]
[347667484,1736044235921,-500.46921998,0.00011998,2]
[347667485,1736044235930,-500.0,0.00011998,2]
[347667486,1736044235939,-500.12291095,0.00011998,2]
[347667487,1736044235949,-500.31612469,0.00011998,2]
[347667488,1736044235958,-500.46302832,0.00011998,2]
[347667489,1736044235967,-500.0,0.00011998,2]
[347667490,1736044235977,-500.89151242,0.00011998,2]
[347667491,1736044235986,-500.0,0.00011998,2]
[347667492,1736044235995,-499.27425264,0.00011998,2]
[347667493,1736044236005,-500.0,0.00011998,2]
[347667494,1736044236014,-500.0,0.00011998,2]
[347667495,1736044236023,-500.33003336,0.00011998,2]
[347667496,1736044236033,-500.7869478,0.00011998,2]
[347667497,1736044236043,-502.98969257,0.00011998,2]
[347667498,1736044236053,-500.69359009,0.00011998,2]
[347667499,1736044236063,-500.72313968,0.00011998,2]
[347667500,1736044236073,-500.37258033,0.00011998,2]
[347667501,1736044236085,-500.0,0.00011998,2]
[347667502,1736044236096,-500.46463124,0.00011998,2]
[347667503,1736044236106,-500.0,0.00011998,2]
[347667504,1736044236115,-500.5652293,0.00011998,2]
[347667505,1736044236126,-501.04746694,0.00011998,2]
[347667506,1736044236135,-500.0,0.00011998,2]
[347667507,1736044236144,-502.32825287,0.00011998,2]
[347667508,1736044236157,-500.73565546,0.00011998,2]
[347667509,1736044236167,-500.0,0.00011998,2]
[347667510,1736044236178,-501.66597436,0.00011998,2]
[347667511,1736044236188,-500.14953656,0.00011998,2]
[347667512,1736044236197,-503.1440099,0.00011998,2]
[347667513,1736044236206,-500.49646213,0.00011998,2]
[347667514,1736044236215,-500.0,0.00011998,2]
[347667515,1736044236224,-498.95403899,0.00011998,2]
[347667516,1736044236233,-500.0,0.00011998,2]
[347667517,1736044236243,-500.74433596,0.00011998,2]
[347667518,1736044236252,-500.35458253,0.00011998,2]
[347667519,1736044236261,-500.0,0.00011998,2]
[347667520,1736044236271,-500.0,0.00011998,2]
[347667521,1736044236280,-500.77153566,0.00011998,2]
[347667522,1736044236289,-500.38132472,0.00011998,2]
[347667523,1736044236299,-161.53143307,0.00011998,2]
[347667524,1736044236307,-500.0,0.00011998,2]
[347667525,1736044236317,-500.0,0.00011998,2]
[347667526,1736044236325,-500.17946013,0.00011998,2]
[347667527,1736044236334,-500.0,0.00011998,2]
[347667528,1736044236343,-500.0,0.00011998,2]
[347667529,1736044236353,-90.97020873,0.00011998,2]
[347667530,1736044236368,-409.29390457,0.00011998,2]
[347667531,1736044236377,-501.08036519,0.00011998,2]
[347667532,1736044236386,-526.58875941,0.00011998,2]
[347667533,1736044236395,-73.9167466,0.00011998,2]
[347667534,1736044236406,-427.23868629,0.00011998,2]
[347667535,1736044236416,-85.16447395,0.00011998,2]
[347667536,1736044236435,-500.0,0.00011997,2]
[347667537,1736044236445,-50.99707701,0.00011998,2]
[347667538,1736044236457,-363.83844904,0.00011998,2]
[347667539,1736044236468,-500.96561157,0.00011998,2]
[347667540,1736044236478,-346.90642939,0.00011998,2]
[347667543,1736044237906,-154.06356067,0.00011998,2]
[347667544,1736044237916,-278.58544303,0.00011998,2]
[347667545,1736044237928,-224.61178469,0.00011998,2]
[347667546,1736044237937,-337.86821531,0.00011998,2]
[347667547,1736044237948,-162.13178469,0.00011998,2]
[347667548,1736044237957,-500.0,0.00011998,2]
[347667549,1736044237966,-500.26743851,0.00011998,2]
[347667550,1736044237976,-500.60607065,0.00011998,2]
[347667551,1736044237985,-500.0,0.00011998,2]
[347667552,1736044237994,-500.0,0.00011998,2]
[347667553,1736044238003,-574.57175484,0.00011998,2]
[347667554,1736044238018,-500.58853801,0.00011998,2]
[347667555,1736044238028,-500.0,0.00011998,2]
[347667556,1736044238037,-500.23324406,0.00011998,2]
[347667557,1736044238046,-500.13439213,0.00011998,2]
[347667558,1736044238055,-500.67944095,0.00011998,2]
[347667559,1736044238065,-500.0,0.00011998,2]
[347667560,1736044238074,-345.89009713,0.00011998,2]
[347667561,1736044238087,-154.62483227,0.00011998,2]
[347667562,1736044238096,-500.63364449,0.00011998,2]
[347667563,1736044238106,-105.13239646,0.00011998,2]
[347667564,1736044238119,-395.05885063,0.00011998,2]
[347667565,1736044238128,-500.0,0.00011998,2]
[347667567,1736044238138,-500.0,0.00011998,2]
[347667569,1736044238147,-510.22645008,0.00011998,2]
[347667571,1736044238157,-500.0,0.00011998,2]
[347667573,1736044238166,-500.0,0.00011998,2]
[347667575,1736044238175,-500.46267609,0.00011998,2]
[347667577,1736044238185,-500.19013339,0.00011998,2]
[347667578,1736044238194,-500.0,0.00011998,2]
[347667580,1736044238203,-500.0,0.00011998,2]
[347667582,1736044238212,-500.0,0.00011998,2]
[347667584,1736044238221,-500.0,0.00011998,2]
[347667586,1736044238230,-500.0,0.00011998,2]
[347667588,1736044238239,-510.08720482,0.00011998,2]
[347667590,1736044238248,-4568.14,0.00011998,2]
[347667592,1736044238258,-535.95,0.00011998,2]
[347667594,1736044238267,-517.33796657,0.00011998,2]
[347667596,1736044238276,-221.80564348,0.00011998,2]
[347667598,1736044238287,-500.0,0.00011998,2]
[347667600,1736044238296,-500.0,0.00011998,2]
[347667602,1736044238304,-500.0,0.00011998,2]
[347667604,1736044238313,-500.0,0.00011998,2]
[347667606,1736044238323,-500.0,0.00011998,2]
[347667608,1736044238332,-500.0,0.00011998,2]
[347667610,1736044238341,-500.0,0.00011998,2]
[347667611,1736044238349,-500.0,0.00011998,2]
[347667612,1736044238358,-500.0,0.00011998,2]
[347667613,1736044238367,-500.0,0.00011998,2]
[347667614,1736044238376,-500.0,0.00011998,2]
[347667615,1736044238385,-500.0,0.00011998,2]
[347667616,1736044238394,-500.0,0.00011998,2]
[347667617,1736044238403,-515.85181013,0.00011998,2]
[347667618,1736044238411,-182.07633552,0.00011998,2]
[347667619,1736044238420,-500.0,0.00011998,2]
[347667620,1736044238429,-500.0,0.00011998,2]
[347667621,1736044238438,-500.0,0.00011998,2]
[347667622,1736044238447,-500.0,0.00011998,2]
[347667623,1736044238455,-500.0,0.00011998,2]
[347667624,1736044238464,-500.0,0.00011998,2]
[347667625,1736044238473,-500.0,0.00011998,2]
[347667626,1736044238482,-500.0,0.00011998,2]
[347667628,1736044238491,-500.0,0.00011998,2]
[347667629,1736044238501,-500.88810717,0.00011998,2]
[347667631,1736044238511,-500.0,0.00011998,2]
[347667634,1736044238520,-641.41503818,0.00011998,2]
[347667635,1736044238529,-500.0,0.00011998,2]
[347667636,1736044238539,-500.0,0.00011998,2]
[347667637,1736044238548,-500.0,0.00011998,2]
[347667638,1736044238557,-500.0,0.00011998,2]
[347667639,1736044238566,-500.0,0.00011998,2]
[347667640,1736044238575,-500.0,0.00011998,2]
[347667641,1736044238584,-1251.32,0.00011998,2]
[347667642,1736044238594,-500.47732164,0.00011998,2]
[347667643,1736044238603,-506.0870619,0.00011998,2]
[347667644,1736044238613,-500.0,0.00011998,2]
[347667645,1736044238622,-500.0,0.00011998,2]
[347667646,1736044238631,-504.12861252,0.00011998,2]
[347667647,1736044238640,-504.65958544,0.00011998,2]
[347667648,1736044238649,-606.58897303,0.00011998,2]
[347667649,1736044238658,-500.0,0.00011998,2]
[347667650,1736044238667,-500.0,0.00011998,2]
[347667651,1736044238676,-500.0,0.00011998,2]
[347667652,1736044238685,-500.0,0.00011998,2]
[347667653,1736044238695,-500.0,0.00011998,2]
[347667654,1736044238705,-512.46780522,0.00011998,2]
[347667655,1736044238716,-500.0,0.00011998,2]
[347667656,1736044238725,-388.86693701,0.00011999,2]
[347667657,1736044238735,-855.91390249,0.00011999,2]
[347667658,1736044238743,-3747.50884088,0.00011999,2]
[347667659,1736044238755,-13677.92265122,0.00011999,2]
[347667660,1736044238767,-1435.47463315,0.00011999,2]
[347667662,1736044240035,-506.71,0.00011829,2]
[347667663,1736044240046,-2615.7278827,0.0001195,2]
[347667664,1736044240056,-43956.90315199,0.00011999,2]
[347667665,1736044240066,-778.88654279,0.00011999,2]
[347667666,1736044240078,-200.0,0.00011999,2]
[347667667,1736044240088,-94945.7747815,0.00011999,2]
[347667668,1736044240098,-1768.66905475,0.00011999,2]
[347667669,1736044240107,-505.57531509,0.00011999,2]
[347667670,1736044240117,-500.0,0.00011999,2]
[347667671,1736044240127,-501.05084853,0.00011999,2]
[347667672,1736044240137,-509.96302271,0.00011999,2]
[347667673,1736044240149,-502.90807613,0.00011999,2]
[347667674,1736044240158,-503.63117992,0.00011999,2]
[347667675,1736044240167,-502.34065682,0.00011999,2]
[347667676,1736044240176,-480.44936817,0.00011999,2]
[347667677,1736044240185,-617.33945619,0.00011999,2]
[347667678,1736044240195,-544.52917262,0.00011999,2]
[347667679,1736044240205,-501.36574125,0.00011999,2]
[347667680,1736044240214,-500.0,0.00011999,2]
[347667681,1736044240223,-499.02322324,0.00011999,2]
[347667682,1736044240233,-504.21319705,0.00011999,2]
[347667683,1736044240243,-500.0,0.00011999,2]
[347667684,1736044240253,-500.0,0.00011999,2]
[347667685,1736044240264,-502.47023429,0.00011999,2]
[347667687,1736044240274,-501.21027224,0.00011999,2]
[347667688,1736044240284,-505.14827086,0.00011999,2]
[347667689,1736044240293,-504.51299525,0.00011999,2]
[347667690,1736044240303,-504.05056909,0.00011999,2]
[347667691,1736044240312,-500.0,0.00011999,2]
[347667692,1736044240321,-500.0,0.00011999,2]
[347667693,1736044240330,-496.4401601,0.00011999,2]
[347667694,1736044240339,-503.29813737,0.00011999,2]
[347667695,1736044240348,-500.0,0.00011999,2]
[347667696,1736044240358,-501.42449222,0.00011999,2]
[347667697,1736044240368,-500.0,0.00011999,2]
[347667698,1736044240377,-631.18488146,0.00011999,2]
[347667700,1736044240386,-501.18619374,0.00011999,2]
[347667701,1736044240396,-500.0,0.00011999,2]
[347667703,1736044240405,-492.04285329,0.00011999,2]
[347667706,1736044240415,-500.1642393,0.00011999,2]
[347667707,1736044240424,-501.93939872,0.00011999,2]
[347667710,1736044240434,-530.97227839,0.00011999,2]
[347667712,1736044240443,-514.391016,0.00011999,2]
[347667714,1736044240452,-501.09224537,0.00011999,2]
[347667716,1736044240462,-506.90443482,0.00011999,2]
[347667718,1736044240472,-508.29918065,0.00011999,2]
[347667720,1736044240481,-566.10510739,0.00011999,2]
[347667722,1736044240491,-503.66749098,0.00011999,2]
[347667724,1736044240500,-503.22,0.00011999,2]
[347667726,1736044240510,-500.15469509,0.00011999,2]
[347667728,1736044240519,-639.12521434,0.00011999,2]
[347667729,1736044240527,-502.09736267,0.00011999,2]
[347667731,1736044240537,-500.0,0.00011999,2]
[347667733,1736044240546,-500.0,0.00011999,2]
[347667735,1736044240557,-502.62757579,0.00011999,2]
[347667737,1736044240566,-587.7058571,0.00011999,2]
[347667739,1736044240575,-501.52528317,0.00011999,2]
[347667742,1736044240585,-502.42103484,0.00011999,2]
[347667743,1736044240594,-500.0,0.00011999,2]
[347667744,1736044240603,-500.0,0.00011999,2]
[347667745,1736044240613,-503.434499,0.00011999,2]
[347667746,1736044240622,-314.47368186,0.00011999,2]
[347667747,1736044240631,-502.71712259,0.00011999,2]
[347667748,1736044240640,-502.40293985,0.00011999,2]
[347667749,1736044240650,-504.59968042,0.00011999,2]
[347667750,1736044240659,-501.10594318,0.00011999,2]
[347667751,1736044240668,-502.6498243,0.00011999,2]
[347667752,1736044240678,-500.69214587,0.00011999,2]
[347667753,1736044240688,-501.09117213,0.00011999,2]
[347667754,1736044240697,-500.0,0.00011999,2]
[347667755,1736044240706,-501.60087088,0.00011999,2]
[347667756,1736044240716,-500.0,0.00011999,2]
[347667757,1736044240725,-504.79878738,0.00011999,2]
[347667758,1736044240734,-500.0,0.00011999,2]
[347667759,1736044240743,-500.80706347,0.00011999,2]
[347667760,1736044240752,-501.12196575,0.00011999,2]
[347667761,1736044240763,-500.62702384,0.00011999,2]
[347667762,1736044240772,-501.04345487,0.00011999,2]
[347667763,1736044240782,-500.73734178,0.00011999,2]
[347667764,1736044240791,-500.50661413,0.00011999,2]
[347667765,1736044240800,-501.05653748,0.00011999,2]
[347667766,1736044240809,-502.24018168,0.00011999,2]
[347667767,1736044240819,-500.0,0.00011999,2]
[347667768,1736044240828,-502.0455194,0.00011999,2]
[347667769,1736044240837,-500.59589671,0.00011999,2]
[347667770,1736044240847,-501.92564183,0.00011999,2]
[347667771,1736044240856,-571.79430511,0.00011999,2]
[347667772,1736044241015,-500.0,0.00011999,2]
[347667773,1736044241024,-504.72702483,0.00011999,2]
[347667774,1736044241035,-501.96836972,0.00011999,2]
[347667775,1736044241044,-500.0,0.00011999,2]
[347667776,1736044241053,-500.0,0.00011999,2]
[347667777,1736044241062,-501.38984478,0.00011999,2]
[347667778,1736044241072,-500.5578086,0.00011999,2]
[347667779,1736044241084,-500.0,0.00011999,2]
[347667780,1736044241093,-502.78652836,0.00011999,2]
[347667781,1736044241103,-500.25676097,0.00011999,2]
[347667782,1736044241112,-500.0,0.00011999,2]
[347667783,1736044241122,-502.85765874,0.00011999,2]
[347667784,1736044241131,-500.0,0.00011999,2]
[347667785,1736044241140,-500.98893037,0.00011999,2]
[347667786,1736044241149,-501.48178382,0.00011999,2]
[347667787,1736044241158,-500.0,0.00011999,2]
[347667788,1736044241168,-501.86919569,0.00011999,2]
[347667789,1736044241177,-503.44835448,0.00011999,2]
[347667790,1736044241186,-512.16944745,0.00011999,2]
[347667791,1736044241195,-500.97340332,0.00011999,2]
[347667792,1736044241204,-500.0,0.00011999,2]
[347667793,1736044241213,-590.2148783,0.00011999,2]
[347667794,1736044241222,-511.58501831,0.00011999,2]
[347667795,1736044241231,-500.0,0.00011999,2]
[347667796,1736044241241,-525.32026337,0.00011999,2]
[347667797,1736044241250,-500.0,0.00011999,2]
[347667798,1736044241259,-503.89220744,0.00011999,2]
[347667799,1736044241268,-500.0,0.00011999,2]
[347667800,1736044241278,-501.6820348,0.00011999,2]
[347667801,1736044241287,-501.99882733,0.00011999,2]
[347667802,1736044241296,-500.9456046,0.00011999,2]
[347667803,1736044241305,-500.0,0.00011999,2]
[347667804,1736044241314,-293.03731439,0.00011999,2]
[347667805,1736044241323,-505.82402444,0.00011999,2]
[347667806,1736044241332,-500.37269566,0.00011999,2]
[347667807,1736044241341,-501.22192665,0.00011999,2]
[347667808,1736044241350,-503.80785308,0.00011999,2]
[347667809,1736044241359,-500.6505595,0.00011999,2]
[347667810,1736044241368,-500.0,0.00011999,2]
[347667811,1736044241377,-542.85788118,0.00011999,2]
[347667812,1736044241386,-501.49533944,0.00011999,2]
[347667813,1736044241395,-560.639954,0.00011999,2]
[347667814,1736044241404,-500.0,0.00011999,2]
[347667815,1736044241413,-500.62159151,0.00011999,2]
[347667816,1736044241423,-500.0,0.00011999,2]
[347667817,1736044241432,-500.0,0.00011999,2]
[347667818,1736044241441,-533.39131881,0.00011999,2]
[347667819,1736044241451,-500.59799053,0.00011999,2]
[347667820,1736044241460,-500.0,0.00011999,2]
[347667821,1736044241469,-500.74255337,0.00011999,2]
[347667822,1736044241479,-501.77314327,0.00011999,2]
[347667823,1736044241487,-503.31450165,0.00011999,2]
[347667824,1736044241498,-503.00728733,0.00011999,2]
[347667825,1736044241507,-500.87131235,0.00011999,2]
[347667826,1736044241517,-502.79761216,0.00011999,2]
[347667827,1736044241526,-502.44954517,0.00011999,2]
[347667828,1736044241535,-500.0,0.00011999,2]
[347667829,1736044241544,-500.23007495,0.00011999,2]
[347667830,1736044241553,-500.0,0.00011999,2]
[347667831,1736044241564,-503.70234307,0.00011999,2]
[347667832,1736044241574,-494.76489006,0.00011999,2]
[347667833,1736044241584,-501.91032647,0.00011999,2]
[347667834,1736044241594,-500.0,0.00011999,2]
[347667835,1736044241604,-503.53156752,0.00011999,2]
[347667836,1736044241613,-502.51469962,0.00011999,2]
[347667837,1736044241623,-505.13093043,0.00011999,2]
[347667838,1736044241632,-500.5038371,0.00011999,2]
[347667839,1736044241641,-498.49178696,0.00011999,2]
[347667840,1736044241650,-500.0,0.00011999,2]
[347667841,1736044241659,-493.11699381,0.00011999,2]
[347667842,1736044241668,-501.46401472,0.00011999,2]
[347667843,1736044241677,-514.7061167,0.00011999,2]
[347667844,1736044241686,-501.74714279,0.00011999,2]
[347667845,1736044241695,-503.53626601,0.00011999,2]
[347667846,1736044241706,-500.45704972,0.00011999,2]
[347667847,1736044241716,-501.84285873,0.00011999,2]
[347667848,1736044241726,-501.93049859,0.00011999,2]
[347667849,1736044241735,-502.87928259,0.00011999,2]
[347667850,1736044241744,-502.55464304,0.00011999,2]
[347667851,1736044241753,-503.7315726,0.00011999,2]
[347667852,1736044241763,-505.12042285,0.00011999,2]
[347667853,1736044241773,-502.50647293,0.00011999,2]
[347667854,1736044241782,-507.63274243,0.00011999,2]
[347667855,1736044241793,-500.0,0.00011999,2]
[347667856,1736044241802,-501.09215968,0.00011999,2]
[347667857,1736044241812,-500.0,0.00011999,2]
[347667858,1736044241821,-471.39418488,0.00011999,2]
[347667859,1736044241831,-548.77696446,0.00011999,2]
[347667860,1736044241841,-500.42188835,0.00011999,2]
[347667861,1736044241850,-510.50451803,0.00011999,2]
[347667862,1736044241860,-502.3240051,0.00011999,2]
[347667863,1736044241870,-501.57869407,0.00011999,2]
[347667864,1736044241879,-502.89079181,0.00011999,2]
[347667865,1736044241888,-508.74868439,0.00011999,2]
[347667866,1736044241898,-504.32237073,0.00011999,2]
[347667867,1736044241908,-500.88706875,0.00011999,2]
[347667868,1736044241917,-514.89961733,0.00011999,2]
[347667869,1736044241926,-502.71487843,0.00011999,2]
[347667870,1736044241936,-500.396997,0.00011999,2]
[347667871,1736044241945,-501.05518293,0.00011999,2]
[347667872,1736044241955,-504.57926544,0.00011999,2]
[347667873,1736044241964,-500.59254888,0.00011999,2]
[347667874,1736044241974,-500.0,0.00011999,2]
[347667875,1736044241983,-500.0,0.00011999,2]
[347667876,1736044241994,-255.00358833,0.00011999,2]
[347667877,1736044242003,-500.0,0.00011999,2]
[347667878,1736044242013,-502.96809777,0.00011999,2]
[347667879,1736044242023,-502.39164394,0.00011999,2]
[347667880,1736044242032,-500.0,0.00011999,2]
[347667881,1736044242041,-505.63564292,0.00011999,2]
[347667882,1736044242050,-500.0,0.00011999,2]
[347667883,1736044242059,-500.0,0.00011999,2]
[347667884,1736044242068,-500.0,0.00011999,2]
[347667885,1736044242082,-500.0,0.00011999,2]
[347667886,1736044242091,-502.46362022,0.00011999,2]
[347667887,1736044242100,-505.19901652,0.00011999,2]
[347667888,1736044242110,-502.82711178,0.00011999,2]
[347667889,1736044242120,-501.44279901,0.00011999,2]
[347667890,1736044242130,-501.82688023,0.00011999,2]
[347667891,1736044242141,-501.79229341,0.00011999,2]
[347667892,1736044242152,-513.7997715,0.00011999,2]
[347667893,1736044242162,-513.61816137,0.00011999,2]
[347667894,1736044242172,-501.3669802,0.00011999,2]
[347667895,1736044242182,-502.21718493,0.00011999,2]
[347667896,1736044242192,-554.70753523,0.00011999,2]
[347667897,1736044242202,-500.85547322,0.00011999,2]
[347667898,1736044242211,-500.80148889,0.00011999,2]
[347667899,1736044242220,-501.07724434,0.00011999,2]
[347667900,1736044242230,-505.87274366,0.00011999,2]
[347667901,1736044242240,-500.99483774,0.00011999,2]
[347667902,1736044242251,-502.85009755,0.00011999,2]
[347667903,1736044242260,-500.81516532,0.00011999,2]
[347667904,1736044242269,-529.98899528,0.00011999,2]
[347667905,1736044242279,-501.46301742,0.00011999,2]
[347667906,1736044242287,-502.30797201,0.00011999,2]
[347667907,1736044242297,-612.7556435,0.00011999,2]
[347667908,1736044242306,-539.50272697,0.00011999,2]
[347667909,1736044242317,-500.16666399,0.00011999,2]
[347667910,1736044242327,-501.64046864,0.00011999,2]
[347667911,1736044242337,-523.06824516,0.00011999,2]
[347667912,1736044242347,-500.16963769,0.00011999,2]